[Event "Israeli Championship 2022"]
[Site "Yosiah Arad"]
[Date "2022.12.09"]
[Round "5.10"]
[White "Levitan, Tal"]
[Black "Zemach, Nadav"]
[Result "1-0"]
[ECO "C48"]
[WhiteElo "2243"]
[BlackElo "2402"]
[Annotator "TA"]
[PlyCount "189"]
[EventDate "2022.12.05"]
[EventType "swiss"]
[EventCountry "ISR"]
[SourceTitle "playchess.com"]
[Source "ChessBase"]
[SourceQuality "1"]
[TimeControl "40/5400+30:1800+30"]

{[%evp 9,189,0,0,0,0,0,0,0,0,0,0,0,16,0,0,-10,7,-10,35,0,18,10,17,0,23,14,27,0,0,0,0,0,0,0,0,0,0,0,0,0,0,8,145,126,191,173,218,215,450,210,583,559,739,722,640,712,698,697,693,680,527,299,347,303,317,357,365,309,339,292,343,345,310,296,582,577,1066,1111,1102,1098,1081,1087,1014,460,447,439,399,380,362,355,375,329,317,277,233,98,72,76,67,22,25,45,156,162,150,155,247,212,219,228,194,179,152,147,190,183,434,434,409,358,782,765,749,732,618,586,569,489,466,445,1511,2330,2495,2296,12842,12842,29967,29968,29967,29951,12845,3073,2097,8,8,0,0,0,0,0,8,8,12,20,29961,8,8,8,8,8,8,8,8,8,29973,29974,29974,29975,29975,29971,29971,0,29970,29968,29984,29986,29986,29987,29987,29988,29989,29990]} 1. e4 {[%emt 0:00:03]} e5 {[%emt 0:00:05]} 2. Nf3 {[%emt 0:00:05]} Nc6 {[%emt 0:00:03]} 3. Nc3 {[%emt 0:00:43]} Nf6 {[%emt 0:00:05]} 4. Bb5 {[%emt 0:00:05]} Nd4 {[%emt 0:00:05]} 5. O-O {[%emt 0:00:05]} c6 {[%emt 0:00:40]} 6. Bd3 {[%emt 0:00:05] C48: Four Knights: 4 Bb5, replies other than 4...Bb4.} Nxf3+ {[%emt 0:03:39]} 7. Qxf3 {[%emt 0:00:13]} Bd6 {[%emt 0:00:16]} 8. Bc4 {[%emt 0:02:47] The position is equal.} O-O {[%emt 0:01:24]} 9. a4 {[%emt 0:04:47]} Bc7 {[%emt 0:01:00]} 10. d3 {[%emt 0:01:01]} h6 {[%emt 0:01:44]} 11. h3 {[%emt 0:02:51]} d6 {[%emt 0:02:44][%cal Bd7d6,Bd6d5][%mdl 32] [#]} 12. Ne2 $146 {[%emt 0:03:12]} ({Predecessor:} 12. g4 Nh7 13. Qg3 Be6 14. Bxe6 fxe6 15. h4 Qf6 16. f4 exf4 17. Bxf4 Qd4+ 18. Kg2 {½-½ (72) Ostrovskiy,A (2430)-Ringoir,T (2474) Charlotte 2021}) 12... Kh7 {[%emt 0:12:07]} 13. Ng3 {[%emt 0:09:51]} g6 {[%emt 0:00:48]} 14. Qe2 {[%emt 0:06:15][%cal Od3d4]} (14. b4 {feels hotter.} Kg7 15. a5 d5 16. Bb3) 14... d5 {[%emt 0:06:46]} 15. Ba2 {[%emt 0:05:44]} Kg7 {[%emt 0:09:32]} 16. Kh1 {[%emt 0:09:41]} Qe7 {[%emt 0:03:08]} 17. f4 {[%emt 0:10:35]} (17. Qe3 {keeps more tension.} Rh8 18. exd5 Nxd5 19. Bxd5 cxd5 20. f4) 17... dxe4 {[%emt 0:02:29]} (17... exf4 {with more complications.} 18. Bxf4 Bxf4 19. Rxf4 dxe4 20. Raf1 Nd5) 18. dxe4 {[%emt 0:02:40]} exf4 {[%emt 0:02:12]} 19. Bxf4 {[%emt 0:00:04]} Bxf4 {[%emt 0:00:11]} 20. Rxf4 {[%emt 0:00:03]} Nd7 {[%emt 0:00:08]} 21. e5 {[%emt 0:40:10]} Nxe5 {[%emt 0:16:48]} (21... Qxe5 $2 22. Qf2 f5 23. Re1 $18) (21... Qg5 $2 22. Raf1 $1 Nxe5 23. h4 $18) 22. Raf1 {[%emt 0:00:00][%cal Of4f7]} f6 {[%emt 0:02:38]} 23. Ne4 {[%emt 0:00:00]} Bf5 {[%emt 0:33:28]} 24. Rxf5 $1 {[%emt 0:00:00]} gxf5 {[%emt 0:00:00]} 25. Ng3 {[%emt 0:00:00]} Qe8 {[%emt 0:00:00]} (25... Kh8 $11 {keeps the balance.}) 26. Nxf5+ $16 {[%emt 0:00:00]} Kh8 {[%emt 0:00:00]} (26... Kh7 $16) 27. Rf4 $1 $18 {[%emt 0:00:00][%mdl 1024] White has strong compensation.} Qg6 {[%emt 0:00:00]} 28. Qf2 $1 $40 {[%emt 0:00:00][%mdl 128] Black is in trouble.} h5 $2 {[%emt 0:00:00]} (28... Rfd8) 29. Rh4 {[%emt 0:00:00]} (29. Ng3 $142 {And now Rf5 would win.} Rae8 30. Rf5) 29... Rad8 $2 {[%emt 0:00:00]} (29... Rfd8) 30. Ng3 $1 {[%emt 0:00:00]} (30. Qe2 Rd7 $15) 30... Rd5 {[%emt 0:01:40]} 31. Bxd5 {[%emt 0:00:00]} cxd5 {[%emt 0:00:07]} 32. Nxh5 {[%emt 0:00:00][%cal Bg3h5,Bh5f4,Bf4d3,Bd3c5,Bc5e6,Be6d4][%mdl 32] Nf4+ is the strong threat.} Kg8 {[%emt 0:00:33]} 33. Nf4 {[%emt 0:00:00]} Qf5 {[%emt 0:01:10]} 34. Rh5 {[%emt 0:00:00]} Qe4 {[%emt 0:00:06]} 35. Nd3 {[%emt 0:01:53]} Ng6 {[%emt 0:01:41]} 36. Rf5 {[%emt 0:00:46]} Kg7 {[%emt 0:00:20]} 37. Nc5 {[%emt 0:05:21]} Qe8 {[%emt 0:00:33]} 38. Rxd5 {[%emt 0:00:00]} Rf7 {[%emt 0:00:10]} 39. Qf5 {[%emt 0:00:00]} Qe1+ {[%emt 0:00:38]} 40. Kh2 {[%emt 0:00:00]} Re7 {[%emt 0:00:09] Inhibits Ne6+.} 41. Rd6 {[%emt 0:07:15]} Qh4 {[%emt 0:09:52]} (41... Qe5+ 42. Qxe5 Nxe5) 42. Ne6+ {[%emt 0:02:43]} Kf7 {[%emt 0:00:36]} 43. Qd5 {[%emt 0:01:47]} Ne5 {[%emt 0:03:58]} 44. Nd4+ {[%emt 0:00:42]} Kf8 {[%emt 0:01:21]} 45. Rd8+ {[%emt 0:12:03]} Re8 {[%emt 0:00:13]} 46. Rxe8+ {[%emt 0:00:02]} (46. Ne6+ $142 Kf7 47. Nc7+ (47. Qxb7+ Re7 $15) 47... Kg6 48. Rxe8 (48. Nxe8 $2 Ng4+ 49. Kh1 Qe1#) 48... Qf4+ 49. g3 Qf2+ 50. Qg2) 46... Kxe8 {[%emt 0:00:06][%mdl 4096] Endgame KQN-KQN} 47. Qe6+ {[%emt 0:00:06]} Kd8 {[%emt 0:04:32] [#]} 48. Qe7+ $3 {[%emt 0:00:23][%mdl 512]} Kxe7 {[%emt 0:03:49]} 49. Nf5+ {[%emt 0:00:11]} Ke6 {[%emt 0:00:01] ( -> ...Ng4+)} 50. Nxh4 {[%emt 0:00:06] KN-KN} Nc4 {[%emt 0:00:04]} 51. b3 {[%emt 0:01:13]} Ne3 {[%emt 0:00:05]} 52. c4 {[%emt 0:00:27]} (52. g4 $18) 52... Nf1+ $16 {[%emt 0:00:07]} 53. Kg1 {[%emt 0:02:10]} Nd2 {[%emt 0:00:04]} 54. Kf2 {[%emt 0:04:11]} (54. b4 $5 {[%cal Rc4c5]}) 54... Nxb3 {[%emt 0:00:04]} 55. Ke3 {[%emt 0:05:41]} Nc5 {[%emt 0:00:37]} (55... a5 $1 $14) 56. a5 {[%emt 0:00:00]} Nb3 {[%emt 0:01:32]} 57. a6 {[%emt 0:00:00]} bxa6 {[%emt 0:01:43]} (57... Nc5 $16 {was called for.}) 58. Nf3 $18 {[%emt 0:00:00] aiming for Nd4+.} Nc5 {[%emt 0:01:53]} 59. Kd4 $1 {[%emt 0:00:00]} Nb3+ {[%emt 0:05:35]} 60. Kc3 {[%emt 0:00:00]} Nc5 {[%emt 0:00:06]} 61. h4 {[%emt 0:00:00][%cal Bh3h4,Bh4h5][%mdl 32]} a5 {[%emt 0:00:09]} 62. Nd4+ $1 {[%emt 0:00:00]} Ke5 $2 {[%emt 0:01:14]} (62... Kf7 63. Nb3 Ne6 64. Nxa5 Nf4) 63. h5 $1 {[%emt 0:00:00] Hoping for h6.} Ne4+ {[%emt 0:01:18]} 64. Kd3 {[%emt 0:00:00]} Nf2+ $2 {[%emt 0:00:14]} (64... f5 65. h6 Nc5+ 66. Kc3 Kf6 67. Nxf5 Kg6) 65. Ke2 {[%emt 0:00:00]} Ng4 {[%emt 0:00:21]} 66. Nc6+ {[%emt 0:00:37]} Ke4 {[%emt 0:00:13]} 67. Nxa5 {[%emt 0:00:07]} ({Weaker is} 67. Nxa7 Kd4 $18) 67... Kd4 {[%emt 0:01:42] Prevents c5.} 68. Kf3 {[%emt 0:00:19]} Nh6 {[%emt 0:00:04]} 69. Kf4 {[%emt 0:00:20]} a6 {[%emt 0:00:55]} (69... Kc5 $142 70. g3 a6) 70. g4 {[%emt 0:00:53] Threatens to win with g5.} Kc5 {[%emt 0:00:09]} 71. g5 {[%emt 0:00:43]} fxg5+ {[%emt 0:00:06]} 72. Kxg5 {[%emt 0:00:01]} Nf7+ {[%emt 0:03:21]} 73. Kg6 {[%emt 0:00:49]} Ne5+ {[%emt 0:00:05]} 74. Kf5 {[%emt 0:00:04]} Nf7 {[%emt 0:00:04]} 75. Ke6 {[%emt 0:03:05]} (75. Nb7+ $142 Kd4 76. Ke6 Ng5+ 77. Kf6 Nh7+ 78. Kg6 Nf8+ 79. Kg7) 75... Nh6 {[%emt 0:01:25]} 76. Nb7+ $2 {[%emt 0:01:37]} (76. Ke5 $18 Ng8 77. Ke6) 76... Kxc4 $11 {[%emt 0:00:25]} 77. Nd6+ {[%emt 0:00:04]} Kb4 {[%emt 0:00:36]} 78. Nf5 {[%emt 0:00:34]} (78. Kf6 $5) 78... Ng4 {[%emt 0:00:02]} 79. Nd4 {[%emt 0:00:08] Kf5 would kill now.} Kc4 {[%emt 0:01:34]} 80. Kf5 {[%emt 0:00:17]} Nh6+ {[%emt 0:00:09]} 81. Kg6 {[%emt 0:00:09]} Ng4 $2 {[%emt 0:00:09][%mdl 8192]} (81... a5 $11) 82. Nc6 $2 {[%emt 0:02:45]} (82. Kg5 {mates} Ne5 {[#]} 83. Nc6 $1 {[%mdl 512]} Nd7 84. h6 Nf8 85. Ne5+ Kd5 86. Nd7 $1 {[%mdl 512]} Nxd7 87. h7) 82... a5 $1 {[%emt 0:00:42]} 83. Nxa5+ {[%emt 0:00:48]} (83. Kg5 $5 a4 $8 84. Na5+ (84. Kxg4 a3 $11) 84... Kb4 85. Kxg4 $11) 83... Kd5 {[%emt 0:00:01]} 84. Nb3 {[%emt 0:00:11] Black must now prevent Kg5.} Ke6 {[%emt 0:00:56]} 85. Nd4+ {[%emt 0:00:19]} Ke7 {[%emt 0:00:06]} 86. Kg7 {[%emt 0:00:02]} Nf6 $2 {[%emt 0:01:26][%mdl 8192]} (86... Kd6 $11) 87. h6 {[%emt 0:00:09]} Ne8+ {[%emt 0:00:32]} 88. Kg6 {[%emt 0:00:26]} Nf6 {[%emt 0:00:26]} 89. Nc6+ {[%emt 0:00:47]} Ke6 {[%emt 0:00:06]} 90. Nd4+ {[%emt 0:00:32]} Ke7 $1 {[%emt 0:00:04]} 91. Ne2 {[%emt 0:00:29] White mates.} Ng4 {[%emt 0:01:09]} 92. h7 {[%emt 0:00:08]} Ne5+ {[%emt 0:00:02]} 93. Kg7 {[%emt 0:00:10]} Nf7 {[%emt 0:00:05]} 94. Nf4 {[%emt 0:00:22]} ({Not} 94. h8=R Nxh8 95. Kxh8 $11) 94... Nh8 {[%emt 0:00:36]} 95. Ng6+ {[%emt 0:00:03] Weighted Error Value: White=0.36/Black=0.37} 1-0

[Event "Israeli Championship 2022"]
[Site "Yosiah Arad"]
[Date "2022.12.09"]
[Round "5.11"]
[White "Shohat, Yotam"]
[Black "Shachar, Ehud"]
[Result "1-0"]
[ECO "C11"]
[WhiteElo "2294"]
[BlackElo "2319"]
[Annotator "TA"]
[PlyCount "73"]
[EventDate "2022.12.05"]
[EventType "swiss"]
[EventCountry "ISR"]
[SourceTitle "playchess.com"]
[Source "ChessBase"]
[SourceQuality "1"]
[TimeControl "40/5400+30:1800+30"]

{[%evp 13,73,0,24,19,23,23,33,31,30,27,31,16,36,0,0,-26,-23,-24,-31,-26,0,-5,21,21,16,6,14,0,47,45,51,28,65,-10,62,65,176,172,178,82,219,137,131,96,125,140,129,85,167,86,226,179,616,537,541,524,508,519,658,658,917,764]} 1. e4 {[%emt 0:00:07][%cal Be2e4,Be4e5][%mdl 32]} e6 {[%emt 0:00:08]} 2. d4 {[%emt 0:00:06]} d5 {[%emt 0:00:06]} 3. Nc3 {[%emt 0:00:03]} Nf6 {[%emt 0:00:31]} 4. e5 {[%emt 0:00:07]} Nfd7 {[%emt 0:00:05]} 5. f4 {[%emt 0:00:05]} c5 {[%emt 0:00:07]} 6. Nf3 {[%emt 0:00:05]} Nc6 {[%emt 0:00:05]} 7. Be3 {[%emt 0:00:04]} a6 {[%emt 0:01:03]} 8. Ne2 {[%emt 0:00:37] C11: French: Classical System: 4 e5 and 4 Bg5 dxe4.} Be7 {[%emt 0:04:21]} 9. c3 {[%emt 0:01:08]} Qc7 {[%emt 0:03:40]} 10. g3 {[%emt 0:10:44] White is slightly better.} b5 {[%emt 0:11:15]} 11. Bh3 {[%emt 0:04:10]} g6 {[%emt 0:06:30] Prevents f5.} 12. O-O {[%emt 0:00:21] [#]} c4 $146 {[%emt 0:01:27]} ({Predecessor:} 12... Bb7 13. Rf2 c4 14. Qc2 O-O-O 15. Rff1 Rdf8 16. Kh1 Nb6 17. Kg1 Kb8 18. Rf2 Bd8 {½-½ (31) Samani,Y (2257)-Pavlov,M (2284) Ayvalik 2022}) 13. b4 {[%emt 0:05:48]} Nb6 {[%emt 0:02:15]} 14. g4 {[%emt 0:06:30][%cal Of4f5]} h5 {[%emt 0:11:39] Prevents f5.} 15. Ng5 {[%emt 0:05:52]} hxg4 {[%emt 0:01:26]} 16. Bxg4 {[%emt 0:00:04]} Bd7 {[%emt 0:03:05]} 17. Kg2 {[%emt 0:08:27]} Bxg5 {[%emt 0:25:19]} (17... a5 $5 {[%cal Ra5b4]} 18. a3 Kf8 $11) 18. fxg5 {[%emt 0:06:11]} Rh7 {[%emt 0:00:16]} 19. Rf6 {[%emt 0:04:28]} O-O-O {[%emt 0:00:31]} 20. Qf1 {[%emt 0:00:43]} Be8 {[%emt 0:00:43]} (20... Ne7 $11) 21. Qf2 $14 {[%emt 0:03:52]} Kb7 {[%emt 0:01:21]} 22. h4 {[%emt 0:04:34]} Ne7 {[%emt 0:01:03]} 23. Nf4 {[%emt 0:07:14]} (23. Rh1 $14) 23... Bd7 {[%emt 0:03:56]} (23... Ng8 $11) 24. h5 $1 {[%emt 0:03:03][%cal Rh5g6]} gxh5 {[%emt 0:00:32]} ({Black should try} 24... Rdh8 $1 $14) 25. Nxh5 $18 {[%emt 0:01:16]} Nf5 {[%emt 0:04:44]} 26. Bf4 {[%emt 0:09:49]} (26. Bxf5 $18 {has better winning chances.} exf5 27. Rh6) 26... Rdh8 {[%emt 0:02:21]} (26... Rg8 $16) 27. Bxf5 {[%emt 0:02:12] Active counter play!} Rxh5 {[%emt 0:00:41]} 28. Bg4 {[%emt 0:00:26]} Rh4 {[%emt 0:00:54]} 29. Qf3 {[%emt 0:01:22]} R4h7 {[%emt 0:06:28]} 30. Rf1 {[%emt 0:02:50]} Rg8 {[%emt 0:05:12] [#]} (30... Qc8 $16) 31. Be3 {[%emt 0:07:58]} (31. Bd2 $1 $18 Be8 32. Rh6) 31... Rgg7 {[%emt 0:02:58]} (31... Be8 $16) 32. Rh6 {[%emt 0:01:21] And now Qh3 would win.} Be8 $2 {[%emt 0:00:25]} (32... Qb8 33. Qh3 Qg8) 33. Rfh1 {[%emt 0:01:03] White is clearly winning.} Rxh6 {[%emt 0:00:48]} 34. gxh6 {[%emt 0:00:03]} Rh7 {[%emt 0:00:11]} 35. Qf6 {[%emt 0:00:20] Prevents a5.} Nc8 {[%emt 0:00:49]} 36. Bg5 {[%emt 0:00:29]} Bc6 {[%emt 0:00:21]} 37. Bd1 {[%emt 0:01:43] Weighted Error Value: White=0.25 (precise) /Black=0.58} 1-0

[Event "Israeli Championship 2022"]
[Site "Yosiah Arad"]
[Date "2022.12.09"]
[Round "5.12"]
[White "Streltsov, Alexey"]
[Black "Sitbon, Itay"]
[Result "1-0"]
[ECO "B38"]
[WhiteElo "2313"]
[BlackElo "2092"]
[Annotator "TA"]
[PlyCount "109"]
[EventDate "2022.12.05"]
[EventType "swiss"]
[EventCountry "ISR"]
[SourceTitle "playchess.com"]
[Source "ChessBase"]
[SourceQuality "1"]
[TimeControl "40/5400+30:1800+30"]

{[%evp 28,109,50,54,54,35,30,19,35,28,45,44,78,78,84,89,100,93,125,141,131,125,177,187,198,177,160,139,187,173,159,153,258,259,255,263,401,401,561,274,1216,1415,1404,1391,1287,1296,1478,1463,1414,1248,29964,29963,29956,12798,7210,6294,29987,1521,2378,2382,2287,1210,2435,2250,2528,2196,12798,6644,12802,12797,6275,6287,29987,29988,29990,29991,29991,29992,29994,29995,29996,29997,29997,29998]} 1. e4 {[%emt 0:00:03]} c5 {[%emt 0:00:02]} 2. Nf3 {[%emt 0:00:10]} g6 {[%emt 0:00:01]} 3. d4 {[%emt 0:00:12]} cxd4 {[%emt 0:00:02]} 4. Nxd4 {[%emt 0:00:12]} Bg7 {[%emt 0:00:07]} 5. c4 {[%emt 0:00:14]} Nc6 {[%emt 0:00:09]} 6. Be3 {[%emt 0:00:17]} Nf6 {[%emt 0:00:16]} 7. Nc3 {[%emt 0:00:11]} O-O {[%emt 0:00:06]} 8. Be2 {[%emt 0:01:02]} d6 {[%emt 0:00:58]} 9. f3 {[%emt 0:01:07]} Bd7 {[%emt 0:01:35]} 10. Qd2 {[%emt 0:00:17]} Nxd4 {[%emt 0:00:10]} 11. Bxd4 {[%emt 0:00:11]} a5 {[%emt 0:01:05]} 12. b3 {[%emt 0:02:42]} Bc6 {[%emt 0:00:31]} 13. O-O {[%emt 0:01:36]} Nd7 {[%emt 0:00:12]} 14. Be3 {[%emt 0:00:12]} Nc5 {[%emt 0:00:24]} 15. Rab1 {[%emt 0:00:11]} Be5 {[%emt 0:04:13] B38: Sicilian: Maroczy Bind with 5...Bg7 and 7...0-0.} 16. Rfc1 {[%emt 0:09:36]} e6 {[%emt 0:01:14]} 17. Bd4 {[%emt 0:08:01] [#]} b6 $146 {[%emt 0:23:10] The position is equal.} (17... Bxd4+ {simplifies} 18. Qxd4 e5 19. Qe3 Ne6) ({Predecessor:} 17... Qb6 18. Kh1 Bxd4 19. Qxd4 Rfd8 20. Rd1 e5 21. Qe3 Qb4 22. h4 Ne6 23. Bf1 Qa3 {0-1 (47) Brunet Gil,P (1939)-Martinez Perez,S (1919) Sabadell 2017}) 18. Rd1 {[%emt 0:05:15]} Rc8 {[%emt 0:08:03]} 19. Qe3 {[%emt 0:14:04]} Qf6 {[%emt 0:08:48]} 20. Bxe5 {[%emt 0:01:42]} dxe5 {[%emt 0:00:22] [#]} 21. a3 $1 {[%emt 0:01:45][%cal Ba2a3,Ba3b4,Bb4b5][%mdl 32] Strongly threatening b4.} Qe7 {[%emt 0:04:12]} 22. b4 {[%emt 0:02:11]} axb4 {[%emt 0:00:16]} 23. axb4 {[%emt 0:00:06]} Nd7 {[%emt 0:01:58] [#]} 24. b5 $1 {[%emt 0:01:55]} Ba8 {[%emt 0:01:36]} (24... Bb7 $16) 25. Na4 $18 {[%emt 0:00:13]} Rb8 {[%emt 0:00:13]} 26. Rxd7 {[%emt 0:00:58]} Qxd7 {[%emt 0:00:13]} 27. Nxb6 {[%emt 0:00:03]} Qa7 {[%emt 0:02:39]} (27... Qd4 $2 28. Qxd4 exd4 29. Nd7 $18) (27... Qc7 $16 {might work better.}) 28. c5 {[%emt 0:00:21]} Rfd8 {[%emt 0:00:55]} 29. Kf1 {[%emt 0:15:23]} Rd4 {[%emt 0:01:00]} (29... Qa2 $16 30. Qc1 Rd2) 30. Qc3 {[%emt 0:00:21] aiming for Ra1.} Rxb6 {[%emt 0:07:32]} 31. Ra1 {[%emt 0:01:50][%mdl 64] Deflection} (31. cxb6 $6 Qxb6 32. Ra1 Bb7 $16) 31... Qc7 {[%emt 0:00:25]} (31... Qb8 $142) 32. Rxa8+ {[%emt 0:00:17]} Kg7 {[%emt 0:00:33]} 33. Qa3 {[%emt 0:04:29]} (33. c6 $142) 33... Rb7 $2 {[%emt 0:08:55]} (33... Rb8) 34. c6 {[%emt 0:05:44] Threatening mate with Qf8+.} Rb8 {[%emt 0:00:15] Prevents Qf8+.} 35. Rxb8 {[%emt 0:02:32]} Qxb8 {[%emt 0:00:07][%mdl 4096] Endgame KQR-KQB} 36. Qc5 {[%emt 0:00:08]} Qd8 {[%emt 0:04:40]} 37. Qxe5+ {[%emt 0:04:09]} (37. c7 Rd1+ 38. Bxd1 Qxd1+ 39. Kf2 Qd2+ 40. Kg3 Qf4+ 41. Kh3 (41. Kf2 Qd2+ 42. Kf1 Qd1+ 43. Kf2 Qd2+ $11) 41... Qh6+ 42. Kg3 Qf4+ 43. Kh3 (43. Kf2 Qd2+ 44. Kg3 Qf4+ $11) 43... Qh6+ 44. Kg3 Qf4+ $11) 37... f6 {[%emt 0:00:08]} 38. Qc5 {[%emt 0:09:36]} e5 {[%emt 0:02:52]} 39. Kf2 {[%emt 0:02:58]} Qc8 {[%emt 0:04:52]} 40. c7 {[%emt 0:02:05]} (40. b6 $142 Rd7 41. c7 (41. cxd7 $2 Qxc5+ 42. Kf1 Qxb6 $19) 41... Rf7 42. Bc4 f5 43. Bxf7 fxe4 44. Qe7 e3+ 45. Kxe3) 40... Rd2 {[%emt 0:01:51]} 41. Ke3 {[%emt 0:30:21]} Rb2 {[%emt 0:30:52]} 42. Qc6 {[%emt 0:05:12]} (42. Qe7+ $142 Kh6 43. Qd8 (43. Qxf6 Qxc7 44. Qf8+ Kh5 $11) 43... Qe6 44. c8=Q (44. c8=B Qf7 $18) 44... Qxc8 45. Qxc8 f5 46. Qf8+ Kh5 47. g4+ Kg5 48. Qe7+ Kh6 49. h4) 42... Rb3+ {[%emt 0:07:00]} 43. Kf2 {[%emt 0:00:15]} Rb2 {[%emt 0:00:30]} 44. h4 {[%emt 0:00:49] Qd6 is the strong threat.} h5 {[%emt 0:02:05]} 45. Ke3 {[%emt 0:00:00]} Rb3+ {[%emt 0:00:00]} 46. Bd3 {[%emt 0:00:00]} Kh6 {[%emt 0:00:00]} 47. Ke2 {[%emt 0:00:00] Active counter play!} Rb2+ {[%emt 0:00:00]} 48. Kf1 {[%emt 0:00:00] Intending Kg1 and mate.} Kg7 {[%emt 0:00:00]} 49. Kg1 {[%emt 0:00:00] White wants to mate with Bc4.} Kh7 {[%emt 0:00:00]} 50. Bc4 {[%emt 0:00:00] White mates.} ({Worse is} 50. Qxf6 Qxc7 51. Kh2 Rb3 $11) 50... f5 {[%emt 0:00:15]} 51. Be6 {[%emt 0:00:00]} Rb1+ {[%emt 0:00:05]} 52. Kh2 {[%emt 0:00:00]} f4 {[%emt 0:00:38]} 53. Bxc8 {[%emt 0:00:00]} g5 {[%emt 0:00:01]} 54. Bf5+ {[%emt 0:00:00]} Kg7 {[%emt 0:00:06]} 55. Qg6+ {[%emt 0:07:04] Weighted Error Value: White=0.25 (precise) /Black=0.80} 1-0

[Event "Israeli Championship 2022"]
[Site "Yosiah Arad"]
[Date "2022.12.09"]
[Round "5.13"]
[White "Tzidkiya, Yeshaayahu"]
[Black "Uritsky, Yonathan"]
[Result "1-0"]
[ECO "A45"]
[WhiteElo "2444"]
[BlackElo "2216"]
[Annotator "TA"]
[PlyCount "85"]
[EventDate "2022.12.05"]
[EventType "swiss"]
[EventCountry "ISR"]
[SourceTitle "playchess.com"]
[Source "ChessBase"]
[SourceQuality "1"]
[TimeControl "40/5400+30:1800+30"]

{[%evp 12,85,33,34,64,64,87,99,116,118,121,90,100,65,74,56,89,92,94,81,102,107,183,188,201,194,247,254,251,252,244,177,193,186,242,241,240,247,241,239,237,240,239,212,246,253,253,236,245,233,262,252,258,242,292,263,301,275,296,291,287,249,376,376,405,400,391,383,556,539,675,683,683,643,615,578]} 1. d4 {[%emt 0:00:06]} Nf6 {[%emt 0:00:16]} 2. Nc3 {[%emt 0:00:06]} c5 {[%emt 0:00:23]} 3. Bg5 {[%emt 0:00:30]} cxd4 {[%emt 0:01:43]} 4. Qxd4 {[%emt 0:00:04]} Nc6 {[%emt 0:01:16]} 5. Qh4 {[%emt 0:00:08]} e6 {[%emt 0:02:43]} 6. e4 {[%emt 0:00:08]} Be7 {[%emt 0:01:46]} 7. O-O-O {[%emt 0:02:50] 7.f4 is not played anymore.} h6 {[%emt 0:04:12] A45: Trompowsky Attack.} 8. f4 $1 {[%emt 0:00:17]} O-O {[%emt 0:10:09]} (8... hxg5 $2 9. Qxh8+ Bf8 10. e5 $18) 9. Nf3 {[%emt 0:00:36][%cal Og5h6] [#] Hoping for Bxh6!} (9. Bxh6 {with more complications.} gxh6 10. Qxh6 Ng4 11. Qh3) 9... Ne8 $146 {[%emt 0:16:53] White is better.} ({Don't do} 9... hxg5 10. Nxg5 $14) ({Predecessor:} 9... Qa5 10. e5 hxg5 11. Nxg5 Nxe5 12. fxe5 Qxe5 13. Bd3 Nh5 14. Nce4 Qf4+ 15. Qxf4 Nxf4 {0-1 (63) Konenkin,D (2267)-Tanaka,T (2106) Chess.com INT 2020}) 10. Bxe7 {[%emt 0:07:54]} Qxe7 {[%emt 0:00:19]} 11. Qxe7 {[%emt 0:00:32]} Nxe7 {[%emt 0:00:02]} 12. e5 {[%emt 0:00:31]} Nc7 {[%emt 0:02:19]} 13. Bd3 {[%emt 0:02:17]} f5 {[%emt 0:02:57] Black is on the road to losing.} 14. exf6 {[%emt 0:09:05]} gxf6 {[%emt 0:02:28]} 15. Rhe1 {[%emt 0:00:03]} d5 {[%emt 0:01:34]} 16. Nd4 {[%emt 0:19:06] White has more active pieces. The black rooks are badly placed.} Bd7 {[%emt 0:01:46]} (16... a6 $16 {was called for.}) 17. Ncb5 $18 {[%emt 0:00:26]} Bxb5 {[%emt 0:10:49]} 18. Nxb5 {[%emt 0:00:15]} Rfc8 {[%emt 0:02:47]} (18... Nxb5 $142 19. Rxe6 (19. Bxb5 Ng6 $16) 19... Kf7) 19. Nxc7 {[%emt 0:00:06]} Rxc7 {[%emt 0:00:03]} 20. Rxe6 {[%emt 0:00:05]} Kf7 {[%emt 0:00:09]} 21. Rde1 {[%emt 0:00:59]} Rg8 {[%emt 0:03:17]} 22. g3 {[%emt 0:00:31]} Nc6 {[%emt 0:01:07]} (22... Rd8 $142 23. a3 Nc8) 23. Rd6 {[%emt 0:01:50] Threatens to win with Ree6.} Rd8 {[%emt 0:00:28]} 24. Rxd8 {[%emt 0:00:32]} Nxd8 {[%emt 0:00:02][%mdl 4096] Endgame KRB-KRN} 25. Be2 {[%emt 0:03:05]} Nc6 {[%emt 0:03:56]} 26. Bh5+ {[%emt 0:01:59]} Kg7 {[%emt 0:00:10]} 27. Rd1 {[%emt 0:02:19]} d4 {[%emt 0:01:21]} 28. a3 {[%emt 0:11:03] Prevents Nb4.} Rd7 {[%emt 0:00:05]} 29. Bf3 {[%emt 0:02:26]} Na5 {[%emt 0:03:56]} 30. Be4 {[%emt 0:04:50]} b6 {[%emt 0:02:06]} 31. b3 {[%emt 0:02:35]} h5 {[%emt 0:00:26]} 32. Kb2 {[%emt 0:03:41]} Kh6 {[%emt 0:01:19]} 33. h3 {[%emt 0:01:29]} b5 {[%emt 0:01:35]} 34. g4 {[%emt 0:00:42]} Rd6 {[%emt 0:02:29]} 35. Bf3 {[%emt 0:02:55]} h4 {[%emt 0:01:41]} 36. Be4 {[%emt 0:00:19]} Rd8 {[%emt 0:01:09]} (36... a6 {was necessary.} 37. Ka2 Kg7) 37. Rg1 {[%emt 0:01:19]} Rg8 {[%emt 0:02:07]} 38. g5+ {[%emt 0:02:37]} fxg5 {[%emt 0:00:21]} 39. Rg4 {[%emt 0:00:03]} Kh5 {[%emt 0:02:10]} (39... Rg7 $142 40. fxg5+ Rxg5 41. Rxh4+ Kg7 42. Rh7+ Kf6 43. Rxa7 Ke5) 40. Bf3 {[%emt 0:00:08] White is clearly winning.} Rf8 {[%emt 0:00:23]} 41. Rxg5+ {[%emt 0:30:04]} Kh6 {[%emt 0:30:06]} 42. Rxb5 {[%emt 0:00:05]} Rxf4 {[%emt 0:00:08]} 43. Bd5 {[%emt 0:00:18] Weighted Error Value: White=0.08 (flawless) /Black=0.32} ({Weaker is} 43. Rxa5 Rxf3 44. Ra6+ (44. Rxa7 d3 $16) 44... Kg5 $16) 1-0